[Event "Late-Titled-Tuesday-Blitz-June-18-2024"]
[Site "Chess.com"]
[Date "2024.06.18"]
[Round "3"]
[White "MYMChessAcademy"]
[Black "Heliosis11"]
[Result "0-1"]
[WhiteElo "2218"]
[BlackElo "2453"]
[TimeControl "180+1"]
[EndTime "14:29:50 PDT"]
[Termination "Heliosis11 won by checkmate"]

1. e4 {[%clk 0:03:00.9]} 1... e5 {[%clk 0:02:36.1]} 2. Nf3 {[%clk 0:03:00.1]}
2... Nc6 {[%clk 0:02:36.8]} 3. Bc4 {[%clk 0:02:59.6]} 3... Nf6 {[%clk
0:02:36.5]} 4. d3 {[%clk 0:02:58.1]} 4... Bc5 {[%clk 0:02:34.9]} 5. Nc3 {[%clk
0:02:58.5]} 5... O-O {[%clk 0:02:33.2]} 6. O-O {[%clk 0:02:56.1]} 6... a6 {[%clk
0:02:29.9]} 7. a4 {[%clk 0:02:55.7]} 7... d6 {[%clk 0:02:30.3]} 8. Nd5 {[%clk
0:02:55.5]} 8... h6 {[%clk 0:02:29.1]} 9. Be3 {[%clk 0:02:54.4]} 9... Ba7 {[%clk
0:02:27.8]} 10. h3 {[%clk 0:02:52]} 10... Be6 {[%clk 0:02:26.8]} 11. Qd2 {[%clk
0:02:49.2]} 11... Bxd5 {[%clk 0:02:13.1]} 12. exd5 {[%clk 0:02:48]} 12... Ne7
{[%clk 0:02:13.3]} 13. d4 {[%clk 0:02:28.4]} 13... e4 {[%clk 0:02:11.4]} 14. Nh4
{[%clk 0:02:25.1]} 14... Nexd5 {[%clk 0:02:09.3]} 15. Nf5 {[%clk 0:02:22.9]}
15... Nxe3 {[%clk 0:02:09.2]} 16. Qxe3 {[%clk 0:02:18]} 16... d5 {[%clk
0:02:08.6]} 17. Qg3 {[%clk 0:02:11]} 17... Nh5 {[%clk 0:01:55.8]} 18. Nxh6+
{[%clk 0:01:58.9]} 18... Kh7 {[%clk 0:01:55.7]} 19. Be2 {[%clk 0:01:43.5]} 19...
Kxh6 {[%clk 0:01:19.4]} 20. Qe3+ {[%clk 0:01:28.6]} 20... g5 {[%clk 0:01:16]}
21. h4 {[%clk 0:01:27]} 21... Nf4 {[%clk 0:01:13.9]} 22. hxg5+ {[%clk
0:01:26.2]} 22... Qxg5 {[%clk 0:01:14.8]} 23. g3 {[%clk 0:01:20.6]} 23... Nxe2+
{[%clk 0:01:14.8]} 24. Qxe2 {[%clk 0:01:20.1]} 24... Bxd4 {[%clk 0:01:15.1]} 25.
Kg2 {[%clk 0:01:19.8]} 25... Kg7 {[%clk 0:01:07.7]} 26. Rh1 {[%clk 0:01:18.8]}
26... Rh8 {[%clk 0:01:04.3]} 27. c3 {[%clk 0:01:17.9]} 27... Be5 {[%clk
0:01:01.4]} 28. Rh2 {[%clk 0:01:15.9]} 28... Rxh2+ {[%clk 0:00:56.2]} 29. Kxh2
{[%clk 0:01:16.8]} 29... Rh8+ {[%clk 0:00:56.2]} 30. Kg2 {[%clk 0:01:16.8]}
30... f5 {[%clk 0:00:49.1]} 31. Rd1 {[%clk 0:01:14.4]} 31... f4 {[%clk
0:00:48.3]} 32. Qd2 {[%clk 0:01:06.4]} 32... f3+ {[%clk 0:00:48]} 33. Kg1 {[%clk
0:01:04.7]} 33... Qxd2 {[%clk 0:00:43.9]} 34. Rxd2 {[%clk 0:01:05.6]} 34... c6
{[%clk 0:00:43.4]} 35. c4 {[%clk 0:01:04.7]} 35... Rd8 {[%clk 0:00:43]} 36. b3
{[%clk 0:01:03.5]} 36... d4 {[%clk 0:00:43.2]} 37. Rd1 {[%clk 0:01:02.9]} 37...
Rd6 {[%clk 0:00:43.2]} 38. Kf1 {[%clk 0:01:02]} 38... e3 {[%clk 0:00:43.3]} 39.
Ke1 {[%clk 0:01:02]} 39... Re6 {[%clk 0:00:40.3]} 40. Rd3 {[%clk 0:01:00.9]}
40... Bxg3 {[%clk 0:00:41.2]} 41. fxg3 {[%clk 0:00:59.3]} 41... f2+ {[%clk
0:00:40.8]} 42. Ke2 {[%clk 0:00:58.2]} 42... Rf6 {[%clk 0:00:39.1]} 43. Rd1
{[%clk 0:00:55.8]} 43... f1=Q+ {[%clk 0:00:39.2]} 44. Rxf1 {[%clk 0:00:55.3]}
44... Rxf1 {[%clk 0:00:40.1]} 45. Kxf1 {[%clk 0:00:55.1]} 45... d3 {[%clk
0:00:39.8]} 46. Ke1 {[%clk 0:00:55.1]} 46... Kf6 {[%clk 0:00:28.9]} 47. b4
{[%clk 0:00:45.6]} 47... Kf5 {[%clk 0:00:24.7]} 48. c5 {[%clk 0:00:38.1]} 48...
Ke4 {[%clk 0:00:21.1]} 49. g4 {[%clk 0:00:37.6]} 49... Kf3 {[%clk 0:00:21.2]}
50. g5 {[%clk 0:00:35.1]} 50... e2 {[%clk 0:00:21.7]} 51. Kd2 {[%clk 0:00:28.3]}
51... Kf2 {[%clk 0:00:22.2]} 52. Kxd3 {[%clk 0:00:29.2]} 52... e1=Q {[%clk
0:00:23.1]} 53. g6 {[%clk 0:00:29.3]} 53... Qb1+ {[%clk 0:00:23.5]} 54. Kd4
{[%clk 0:00:29.3]} 54... Qxg6 {[%clk 0:00:24.4]} 55. b5 {[%clk 0:00:29.2]} 55...
Qg4+ {[%clk 0:00:24.9]} 56. Kc3 {[%clk 0:00:29]} 56... Qxa4 {[%clk 0:00:25.8]}
57. b6 {[%clk 0:00:28.4]} 57... Qb5 {[%clk 0:00:25.4]} 58. Kd4 {[%clk 0:00:28]}
58... Qb4+ {[%clk 0:00:26]} 59. Ke5 {[%clk 0:00:28.9]} 59... Qxc5+ {[%clk
0:00:26.4]} 60. Ke6 {[%clk 0:00:29.2]} 60... Qxb6 {[%clk 0:00:27.3]} 61. Kd7
{[%clk 0:00:29.7]} 61... a5 {[%clk 0:00:28.2]} 62. Kc8 {[%clk 0:00:30]} 62... a4
{[%clk 0:00:29.1]} 63. Kb8 {[%clk 0:00:30.2]} 63... a3 {[%clk 0:00:30]} 64. Kc8
{[%clk 0:00:30.9]} 64... a2 {[%clk 0:00:30.9]} 65. Kb8 {[%clk 0:00:31.6]} 65...
a1=Q {[%clk 0:00:31.8]} 66. Kc8 {[%clk 0:00:32.2]} 66... Qf6 {[%clk 0:00:27.8]}
67. Kb8 {[%clk 0:00:32.4]} 67... Qfd8# {[%clk 0:00:27.2]} 0-1

[Event "Late-Titled-Tuesday-Blitz-June-18-2024"]
[Site "Chess.com"]
[Date "2024.06.18"]
[Round "3"]
[White "aranibos"]
[Black "KorolDimitriy75"]
[Result "0-1"]
[WhiteElo "2272"]
[BlackElo "2491"]
[TimeControl "180+1"]
[EndTime "14:29:51 PDT"]
[Termination "KorolDimitriy75 won by resignation"]

1. e4 {[%clk 0:03:00.9]} 1... c5 {[%clk 0:02:59.6]} 2. Nc3 {[%clk 0:02:58.8]}
2... g6 {[%clk 0:02:59.6]} 3. f4 {[%clk 0:02:58.9]} 3... Bg7 {[%clk 0:02:59.8]}
4. Nf3 {[%clk 0:02:59.3]} 4... Nc6 {[%clk 0:03:00.2]} 5. Bb5 {[%clk 0:02:59.1]}
5... Nd4 {[%clk 0:03:00.4]} 6. Bc4 {[%clk 0:02:58.4]} 6... e6 {[%clk 0:02:58.6]}
7. d3 {[%clk 0:02:57]} 7... Ne7 {[%clk 0:02:58.2]} 8. O-O {[%clk 0:02:56.7]}
8... O-O {[%clk 0:02:57.9]} 9. a3 {[%clk 0:02:56]} 9... d5 {[%clk 0:02:37.7]}
10. Ba2 {[%clk 0:02:52.9]} 10... b5 {[%clk 0:02:02.3]} 11. Kh1 {[%clk
0:02:49.2]} 11... Bb7 {[%clk 0:01:50.5]} 12. Ne2 {[%clk 0:02:32.4]} 12... dxe4
{[%clk 0:01:19]} 13. Nfxd4 {[%clk 0:02:32.2]} 13... cxd4 {[%clk 0:01:18.4]} 14.
dxe4 {[%clk 0:02:25.6]} 14... Bxe4 {[%clk 0:01:18]} 15. Ng3 {[%clk 0:02:25.6]}
15... Bd5 {[%clk 0:01:10.5]} 16. Bxd5 {[%clk 0:02:17.9]} 16... Qxd5 {[%clk
0:01:10.5]} 17. Qf3 {[%clk 0:02:17.2]} 17... Rac8 {[%clk 0:01:05.2]} 18. Qd3
{[%clk 0:02:02]} 18... Qc4 {[%clk 0:01:00.4]} 19. Bd2 {[%clk 0:02:00.2]} 19...
Qxc2 {[%clk 0:00:56.3]} 20. Qxc2 {[%clk 0:01:55.6]} 20... Rxc2 {[%clk
0:00:57.2]} 21. Bb4 {[%clk 0:01:55.6]} 21... Re8 {[%clk 0:00:56.6]} 22. Rac1
{[%clk 0:01:55.6]} 22... Rxb2 {[%clk 0:00:32.3]} 23. Bxe7 {[%clk 0:01:49.1]}
23... Rxe7 {[%clk 0:00:33.2]} 24. Rc8+ {[%clk 0:01:48.7]} 24... Bf8 {[%clk
0:00:33.4]} 25. Ne4 {[%clk 0:01:48.1]} 25... Kg7 {[%clk 0:00:31]} 26. Rd8 {[%clk
0:01:21.6]} 26... Ra2 {[%clk 0:00:20.9]} 27. Rxd4 {[%clk 0:01:17.3]} 27... Rxa3
{[%clk 0:00:20.2]} 28. h4 {[%clk 0:01:17.8]} 28... Rc7 {[%clk 0:00:19]} 29. Ng5
{[%clk 0:01:12.6]} 29... Be7 {[%clk 0:00:18.3]} 30. Nf3 {[%clk 0:01:11.9]} 30...
b4 {[%clk 0:00:16.5]} 31. Rfd1 {[%clk 0:01:09.7]} 31... a5 {[%clk 0:00:14.3]}
32. Rd7 {[%clk 0:01:09.4]} 32... Rxd7 {[%clk 0:00:14.6]} 33. Rxd7 {[%clk
0:01:09.5]} 33... Kf8 {[%clk 0:00:14.9]} 34. Rb7 {[%clk 0:01:06.3]} 34... b3
{[%clk 0:00:14.9]} 35. Kh2 {[%clk 0:01:01.4]} 35... a4 {[%clk 0:00:14.5]} 36.
Ne5 {[%clk 0:00:59.3]} 36... Ra2 {[%clk 0:00:13.6]} 37. Rb8+ {[%clk 0:00:51]}
37... Kg7 {[%clk 0:00:13.3]} 38. Rb7 {[%clk 0:00:51.5]} 38... Kf8 {[%clk
0:00:10.4]} 39. Rb8+ {[%clk 0:00:50.9]} 39... Kg7 {[%clk 0:00:10.3]} 40. Rb7
{[%clk 0:00:51.2]} 40... Kf6 {[%clk 0:00:07.9]} 41. Nd7+ {[%clk 0:00:33.9]}
41... Kf5 {[%clk 0:00:07.9]} 42. Kg3 {[%clk 0:00:34.4]} 42... b2 {[%clk
0:00:06.9]} 43. Kf3 {[%clk 0:00:24.8]} 43... Ra3+ {[%clk 0:00:07]} 44. Kf2
{[%clk 0:00:21.1]} 44... Rb3 {[%clk 0:00:07.9]} 45. Rxb3 {[%clk 0:00:14.9]}
45... axb3 {[%clk 0:00:08.8]} 46. Kf3 {[%clk 0:00:15.3]} 46... h5 {[%clk
0:00:08]} 0-1

[Event "Late-Titled-Tuesday-Blitz-June-18-2024"]
[Site "Chess.com"]
[Date "2024.06.18"]
[Round "3"]
[White "Chaubunagungamaug1"]
[Black "NowInChess"]
[Result "1-0"]
[WhiteElo "2467"]
[BlackElo "2233"]
[TimeControl "180+1"]
[EndTime "14:29:51 PDT"]
[Termination "Chaubunagungamaug1 won by resignation"]

1. Nc3 {[%clk 0:02:58]} 1... e6 {[%clk 0:02:56.3]} 2. d4 {[%clk 0:02:57]} 2...
Nf6 {[%clk 0:02:54.5]} 3. e4 {[%clk 0:02:56.1]} 3... d5 {[%clk 0:02:53.9]} 4.
Bg5 {[%clk 0:02:55.1]} 4... Be7 {[%clk 0:02:49.8]} 5. e5 {[%clk 0:02:52.2]} 5...
Nfd7 {[%clk 0:02:49.6]} 6. h4 {[%clk 0:02:52.1]} 6... Bxg5 {[%clk 0:02:49.5]} 7.
hxg5 {[%clk 0:02:53]} 7... Qxg5 {[%clk 0:02:49.7]} 8. Nh3 {[%clk 0:02:53.3]}
8... Qe7 {[%clk 0:02:49.9]} 9. Qg4 {[%clk 0:02:53.4]} 9... g6 {[%clk 0:02:49.7]}
10. Nf4 {[%clk 0:02:48.4]} 10... Nc6 {[%clk 0:02:48.7]} 11. O-O-O {[%clk
0:02:45.7]} 11... Nb6 {[%clk 0:02:47.3]} 12. Bd3 {[%clk 0:02:30.9]} 12... Bd7
{[%clk 0:02:46]} 13. Qg3 {[%clk 0:01:28.5]} 13... O-O-O {[%clk 0:02:40.2]} 14.
Qe3 {[%clk 0:01:21.8]} 14... h5 {[%clk 0:02:22.9]} 15. Kb1 {[%clk 0:01:16.6]}
15... Kb8 {[%clk 0:02:17.7]} 16. Nfe2 {[%clk 0:01:11.7]} 16... Na5 {[%clk
0:02:13.5]} 17. Qc1 {[%clk 0:01:02.8]} 17... Nbc4 {[%clk 0:02:08.1]} 18. Ka1
{[%clk 0:01:00.1]} 18... Rc8 {[%clk 0:02:05.2]} 19. b3 {[%clk 0:00:59.5]} 19...
Na3 {[%clk 0:01:58]} 20. Qb2 {[%clk 0:00:59.2]} 20... a6 {[%clk 0:01:44]} 21.
Nb1 {[%clk 0:00:45.4]} 21... Nxb1 {[%clk 0:01:40]} 22. Rxb1 {[%clk 0:00:46.3]}
22... c5 {[%clk 0:01:35.1]} 23. c4 {[%clk 0:00:29.9]} 23... cxd4 {[%clk
0:01:21.8]} 24. Nxd4 {[%clk 0:00:30.8]} 24... Bc6 {[%clk 0:01:12.9]} 25. c5
{[%clk 0:00:24.6]} 25... Bd7 {[%clk 0:00:41.8]} 26. b4 {[%clk 0:00:24.1]} 26...
Nc4 {[%clk 0:00:34.3]} 27. Bxc4 {[%clk 0:00:24]} 27... dxc4 {[%clk 0:00:34.8]}
28. Qc3 {[%clk 0:00:20.2]} 28... Bc6 {[%clk 0:00:30.4]} 29. Nxc6+ {[%clk
0:00:17.6]} 29... Rxc6 {[%clk 0:00:29.8]} 30. Rhd1 {[%clk 0:00:16.9]} 30... Rd8
{[%clk 0:00:28.7]} 31. Qxc4 {[%clk 0:00:14.9]} 31... Rcc8 {[%clk 0:00:27.4]} 32.
Rxd8 {[%clk 0:00:10.9]} 32... Rxd8 {[%clk 0:00:28.3]} 33. b5 {[%clk 0:00:11.2]}
33... axb5 {[%clk 0:00:27.3]} 34. Qxb5 {[%clk 0:00:11.9]} 34... Qc7 {[%clk
0:00:27.7]} 35. c6 {[%clk 0:00:12]} 35... Rd5 {[%clk 0:00:23.7]} 36. Qxb7+
{[%clk 0:00:11.3]} 36... Qxb7 {[%clk 0:00:23.9]} 37. Rxb7+ {[%clk 0:00:11.9]}
37... Kc8 {[%clk 0:00:24.4]} 38. Rxf7 {[%clk 0:00:11.5]} 38... Rxe5 {[%clk
0:00:24.6]} 39. Kb2 {[%clk 0:00:10.1]} 39... Rc5 {[%clk 0:00:23.5]} 40. c7
{[%clk 0:00:08.7]} 40... Rf5 {[%clk 0:00:20.5]} 41. Rxf5 {[%clk 0:00:07.6]}
41... gxf5 {[%clk 0:00:16.7]} 42. Kc3 {[%clk 0:00:08.5]} 42... e5 {[%clk
0:00:16.4]} 43. Kc4 {[%clk 0:00:08.2]} 43... Kxc7 {[%clk 0:00:16.3]} 44. Kd5
{[%clk 0:00:08.6]} 44... e4 {[%clk 0:00:16.8]} 45. Ke5 {[%clk 0:00:08.5]} 45...
h4 {[%clk 0:00:11.3]} 46. Kxf5 {[%clk 0:00:08.1]} 1-0

[Event "Late-Titled-Tuesday-Blitz-June-18-2024"]
[Site "Chess.com"]
[Date "2024.06.18"]
[Round "3"]
[White "DeArron_Fox"]
[Black "DryCounty"]
[Result "0-1"]
[WhiteElo "2461"]
[BlackElo "2653"]
[TimeControl "180+1"]
[EndTime "14:29:54 PDT"]
[Termination "DryCounty won by resignation"]

1. d4 {[%clk 0:02:02.6]} 1... Nf6 {[%clk 0:02:55.9]} 2. c4 {[%clk 0:02:02.1]}
2... g6 {[%clk 0:02:55.9]} 3. Nc3 {[%clk 0:02:00.9]} 3... Bg7 {[%clk 0:02:55.6]}
4. e4 {[%clk 0:02:01.4]} 4... d6 {[%clk 0:02:55.2]} 5. f3 {[%clk 0:02:01.8]}
5... O-O {[%clk 0:02:55.7]} 6. Be3 {[%clk 0:02:01.5]} 6... c5 {[%clk 0:02:56.2]}
7. Nge2 {[%clk 0:02:02.1]} 7... Nc6 {[%clk 0:02:55.4]} 8. d5 {[%clk 0:02:02.7]}
8... Ne5 {[%clk 0:02:54.8]} 9. Ng3 {[%clk 0:02:03.2]} 9... e6 {[%clk 0:02:54.3]}
10. Be2 {[%clk 0:01:59.6]} 10... exd5 {[%clk 0:02:54]} 11. cxd5 {[%clk
0:01:57.5]} 11... h5 {[%clk 0:02:54]} 12. O-O {[%clk 0:01:47.1]} 12... h4 {[%clk
0:02:53.9]} 13. Nh1 {[%clk 0:01:41]} 13... Nh7 {[%clk 0:02:54.3]} 14. Nf2 {[%clk
0:01:38.9]} 14... f5 {[%clk 0:02:54.1]} 15. f4 {[%clk 0:01:38.5]} 15... Nf7
{[%clk 0:02:53]} 16. Bd3 {[%clk 0:01:35]} 16... Re8 {[%clk 0:02:51.4]} 17. Qd2
{[%clk 0:01:31]} 17... Nf6 {[%clk 0:02:46.2]} 18. exf5 {[%clk 0:01:09]} 18...
Bxf5 {[%clk 0:02:44.6]} 19. Bxf5 {[%clk 0:01:08.5]} 19... gxf5 {[%clk 0:02:44]}
20. Rae1 {[%clk 0:01:08.4]} 20... Qd7 {[%clk 0:02:38.3]} 21. Qc2 {[%clk
0:00:34.9]} 21... b5 {[%clk 0:02:35.2]} 22. Qd2 {[%clk 0:00:13.6]} 22... b4
{[%clk 0:02:34.8]} 23. Ncd1 {[%clk 0:00:11.1]} 23... Qb7 {[%clk 0:02:31.7]} 24.
b3 {[%clk 0:00:05.4]} 24... Qxd5 {[%clk 0:02:31.3]} 25. Qxd5 {[%clk 0:00:05.2]}
25... Nxd5 {[%clk 0:02:30.6]} 26. Bd2 {[%clk 0:00:06.1]} 26... Bd4 {[%clk
0:02:29.5]} 27. Kh1 {[%clk 0:00:05.3]} 27... Nf6 {[%clk 0:02:23.6]} 28. Nd3
{[%clk 0:00:03.4]} 28... Rxe1 {[%clk 0:02:21.5]} 29. Rxe1 {[%clk 0:00:03.4]}
29... Ne4 {[%clk 0:02:21.7]} 30. Be3 {[%clk 0:00:03.4]} 30... Bc3 {[%clk
0:02:17.8]} 31. Nxc3 {[%clk 0:00:03.4]} 31... bxc3 {[%clk 0:02:17.8]} 32. Rc1
{[%clk 0:00:03.1]} 32... Nh6 {[%clk 0:02:11.3]} 33. h3 {[%clk 0:00:02.5]} 33...
Rc8 {[%clk 0:02:07.8]} 34. Kg1 {[%clk 0:00:02.9]} 34... d5 {[%clk 0:02:07.1]}
35. Nxc5 {[%clk 0:00:03.5]} 35... Nf7 {[%clk 0:01:49.3]} 36. Bd4 {[%clk
0:00:04]} 36... Nfd6 {[%clk 0:01:36.9]} 37. b4 {[%clk 0:00:04.2]} 37... Nb5
{[%clk 0:01:33.3]} 38. Ne6 {[%clk 0:00:01.9]} 38... Kf7 {[%clk 0:01:29.9]} 39.
a4 {[%clk 0:00:02.5]} 39... Kxe6 {[%clk 0:01:28.3]} 40. axb5 {[%clk 0:00:03.4]}
40... Rc4 {[%clk 0:01:20.6]} 41. Bxa7 {[%clk 0:00:03.2]} 41... Rxb4 {[%clk
0:01:20]} 42. b6 {[%clk 0:00:03.3]} 42... d4 {[%clk 0:01:19]} 43. b7 {[%clk
0:00:03.9]} 43... Rxb7 {[%clk 0:01:16.4]} 44. Bxd4 {[%clk 0:00:04.4]} 44... Rc7
{[%clk 0:01:14.8]} 45. Rc2 {[%clk 0:00:04.5]} 45... Rc4 {[%clk 0:01:14.2]} 46.
Be5 {[%clk 0:00:04.7]} 46... Ra4 {[%clk 0:01:08.4]} 47. Kf1 {[%clk 0:00:03.1]}
47... Kd5 {[%clk 0:01:07.4]} 48. Ke2 {[%clk 0:00:02.1]} 48... Kc4 {[%clk
0:01:07.3]} 49. Kf3 {[%clk 0:00:01.9]} 49... Kd3 {[%clk 0:01:06.3]} 50. Re2
{[%clk 0:00:01.7]} 50... Nd2+ {[%clk 0:01:02.7]} 51. Kf2 {[%clk 0:00:01.9]}
51... Re4 {[%clk 0:01:01.2]} 52. Rxe4 {[%clk 0:00:01.3]} 52... Nxe4+ {[%clk
0:01:00.1]} 53. Kf3 {[%clk 0:00:02.2]} 53... c2 {[%clk 0:00:55.7]} 54. Bb2
{[%clk 0:00:03.1]} 54... Kd2 {[%clk 0:00:52.7]} 55. Ba3 {[%clk 0:00:01.9]} 55...
c1=Q {[%clk 0:00:48.2]} 56. Bxc1+ {[%clk 0:00:02.5]} 56... Kxc1 {[%clk
0:00:48.2]} 57. Ke3 {[%clk 0:00:03.4]} 57... Kd1 {[%clk 0:00:46.2]} 58. Kd4
{[%clk 0:00:04]} 58... Ke2 {[%clk 0:00:46]} 59. Ke5 {[%clk 0:00:04.3]} 59... Ng3
{[%clk 0:00:46.1]} 60. Kf6 {[%clk 0:00:04.8]} 60... Kf2 {[%clk 0:00:45.1]} 61.
Kg5 {[%clk 0:00:05.7]} 61... Kxg2 {[%clk 0:00:43.5]} 62. Kxh4 {[%clk 0:00:06.6]}
62... Kh2 {[%clk 0:00:39.8]} 0-1

[Event "Late-Titled-Tuesday-Blitz-June-18-2024"]
[Site "Chess.com"]
[Date "2024.06.18"]
[Round "3"]
[White "KebabJangles"]
[Black "MathiasWomacka"]
[Result "0-1"]
[WhiteElo "2289"]
[BlackElo "2515"]
[TimeControl "180+1"]
[EndTime "14:29:54 PDT"]
[Termination "MathiasWomacka won by checkmate"]

1. d4 {[%clk 0:03:00.9]} 1... Nf6 {[%clk 0:02:58.8]} 2. c4 {[%clk 0:02:53.2]}
2... e6 {[%clk 0:02:58.8]} 3. g3 {[%clk 0:02:50.3]} 3... c5 {[%clk 0:02:57.4]}
4. d5 {[%clk 0:02:49.6]} 4... exd5 {[%clk 0:02:58.3]} 5. cxd5 {[%clk 0:02:50.5]}
5... d6 {[%clk 0:02:58.5]} 6. Nc3 {[%clk 0:02:47.8]} 6... g6 {[%clk 0:02:58.9]}
7. Bg2 {[%clk 0:02:40.1]} 7... Bg7 {[%clk 0:02:59.1]} 8. Nf3 {[%clk 0:02:35.7]}
8... O-O {[%clk 0:02:59.5]} 9. O-O {[%clk 0:02:29.4]} 9... Nbd7 {[%clk
0:02:59.9]} 10. Bf4 {[%clk 0:02:24.9]} 10... Qe7 {[%clk 0:02:59.4]} 11. e4
{[%clk 0:02:24]} 11... Ng4 {[%clk 0:02:33.1]} 12. Nd2 {[%clk 0:02:18.5]} 12...
Nge5 {[%clk 0:02:20.6]} 13. Be3 {[%clk 0:02:17.7]} 13... Nb6 {[%clk 0:01:35.1]}
14. Qe2 {[%clk 0:01:59.4]} 14... Ng4 {[%clk 0:01:32]} 15. Bf4 {[%clk 0:01:46.2]}
15... g5 {[%clk 0:01:30.7]} 16. Be3 {[%clk 0:01:46.4]} 16... Nxe3 {[%clk
0:01:27]} 17. fxe3 {[%clk 0:01:47.3]} 17... Nd7 {[%clk 0:01:23.3]} 18. Nc4
{[%clk 0:01:46.6]} 18... Ne5 {[%clk 0:01:22.9]} 19. a4 {[%clk 0:01:39.7]} 19...
Bg4 {[%clk 0:01:18.8]} 20. Bf3 {[%clk 0:01:30.6]} 20... Nxf3+ {[%clk 0:01:17]}
21. Rxf3 {[%clk 0:01:30.6]} 21... Bxc3 {[%clk 0:01:13.7]} 22. bxc3 {[%clk
0:01:23.4]} 22... Qxe4 {[%clk 0:01:14]} 23. Nd2 {[%clk 0:01:23.5]} 23... Bxf3
{[%clk 0:01:10.3]} 24. Qxf3 {[%clk 0:01:21.9]} 24... Qxf3 {[%clk 0:01:08.7]} 25.
Nxf3 {[%clk 0:01:22.8]} 25... f6 {[%clk 0:01:03.5]} 26. Kf2 {[%clk 0:01:21.3]}
26... Rfe8 {[%clk 0:01:02.9]} 27. c4 {[%clk 0:01:20.8]} 27... Re4 {[%clk
0:00:59.1]} 28. Nd2 {[%clk 0:01:20.4]} 28... Re7 {[%clk 0:00:56.9]} 29. Rb1
{[%clk 0:01:18.9]} 29... f5 {[%clk 0:00:51.1]} 30. a5 {[%clk 0:01:08.9]} 30...
Kg7 {[%clk 0:00:47.9]} 31. Kf3 {[%clk 0:01:08.8]} 31... Kg6 {[%clk 0:00:47.8]}
32. h3 {[%clk 0:01:05]} 32... Rf8 {[%clk 0:00:46.4]} 33. Rg1 {[%clk 0:01:01.4]}
33... Rfe8 {[%clk 0:00:35.5]} 34. Re1 {[%clk 0:01:00.5]} 34... b6 {[%clk
0:00:35.2]} 35. a6 {[%clk 0:00:59.3]} 35... h5 {[%clk 0:00:31]} 36. Kf2 {[%clk
0:00:58.1]} 36... g4 {[%clk 0:00:30.7]} 37. h4 {[%clk 0:00:57.2]} 37... Kf6
{[%clk 0:00:22.3]} 38. Re2 {[%clk 0:00:43.4]} 38... Rb8 {[%clk 0:00:21.2]} 39.
Re1 {[%clk 0:00:41]} 39... b5 {[%clk 0:00:21.3]} 40. Rb1 {[%clk 0:00:39.9]}
40... b4 {[%clk 0:00:20]} 41. Nb3 {[%clk 0:00:39]} 41... Rbe8 {[%clk 0:00:18.2]}
42. Re1 {[%clk 0:00:38.2]} 42... Re4 {[%clk 0:00:16.9]} 43. Na5 {[%clk
0:00:38.2]} 43... Ke7 {[%clk 0:00:14.3]} 44. Nc6+ {[%clk 0:00:38.1]} 44... Kd7
{[%clk 0:00:14.3]} 45. Nxa7 {[%clk 0:00:34.9]} 45... Rxc4 {[%clk 0:00:14.1]} 46.
Nc6 {[%clk 0:00:33.9]} 46... Rc2+ {[%clk 0:00:13.9]} 47. Kf1 {[%clk 0:00:33.9]}
47... Ra2 {[%clk 0:00:14]} 48. a7 {[%clk 0:00:33.8]} 48... b3 {[%clk 0:00:13.2]}
49. Rb1 {[%clk 0:00:32.7]} 49... Rxe3 {[%clk 0:00:12.5]} 50. Kg1 {[%clk
0:00:27.4]} 50... Rxg3+ {[%clk 0:00:12.3]} 51. Kf1 {[%clk 0:00:27.9]} 51... Rh3
{[%clk 0:00:12.4]} 52. Kg1 {[%clk 0:00:26.9]} 52... Rd3 {[%clk 0:00:10.3]} 53.
Kf1 {[%clk 0:00:26.3]} 53... Rxd5 {[%clk 0:00:09.9]} 54. Nb8+ {[%clk 0:00:25.4]}
54... Kc7 {[%clk 0:00:09.5]} 55. Rxb3 {[%clk 0:00:24.8]} 55... Rd1# {[%clk
0:00:08.3]} 0-1

[Event "Late-Titled-Tuesday-Blitz-June-18-2024"]
[Site "Chess.com"]
[Date "2024.06.18"]
[Round "3"]
[White "Bauman_Guy"]
[Black "HalfIsCrayfish"]
[Result "1-0"]
[WhiteElo "2910"]
[BlackElo "2557"]
[TimeControl "180+1"]
[EndTime "14:29:57 PDT"]
[Termination "Bauman_Guy won on time"]

1. e4 {[%clk 0:03:00.9]} 1... c5 {[%clk 0:02:59.9]} 2. Nf3 {[%clk 0:03:00.9]}
2... Nc6 {[%clk 0:03:00.5]} 3. d4 {[%clk 0:03:01.3]} 3... cxd4 {[%clk
0:03:00.7]} 4. Nxd4 {[%clk 0:03:02.2]} 4... g6 {[%clk 0:03:00]} 5. Nc3 {[%clk
0:03:01.9]} 5... Bg7 {[%clk 0:02:59.7]} 6. Be3 {[%clk 0:03:01.9]} 6... Nf6
{[%clk 0:03:00.2]} 7. Be2 {[%clk 0:03:01.4]} 7... Qa5 {[%clk 0:03:00.4]} 8. O-O
{[%clk 0:03:00.9]} 8... O-O {[%clk 0:02:58.2]} 9. Nb3 {[%clk 0:03:00.8]} 9...
Qc7 {[%clk 0:02:56.1]} 10. Nd5 {[%clk 0:03:00.7]} 10... Qd8 {[%clk 0:02:50.1]}
11. Bf3 {[%clk 0:02:58.5]} 11... d6 {[%clk 0:02:50]} 12. c3 {[%clk 0:02:58.4]}
12... Ne5 {[%clk 0:02:48.1]} 13. Nxf6+ {[%clk 0:02:56.6]} 13... Bxf6 {[%clk
0:02:47.6]} 14. Be2 {[%clk 0:02:57.5]} 14... Be6 {[%clk 0:02:45]} 15. Nd4 {[%clk
0:02:57.2]} 15... Bc4 {[%clk 0:02:43.9]} 16. b3 {[%clk 0:02:56.8]} 16... Bxe2
{[%clk 0:02:43.9]} 17. Qxe2 {[%clk 0:02:57.7]} 17... Rc8 {[%clk 0:02:43]} 18. c4
{[%clk 0:02:58.2]} 18... Nc6 {[%clk 0:02:42.4]} 19. Nxc6 {[%clk 0:02:56.9]}
19... bxc6 {[%clk 0:02:38.8]} 20. Rad1 {[%clk 0:02:57.8]} 20... Qc7 {[%clk
0:02:35]} 21. Rd3 {[%clk 0:02:49.8]} 21... a5 {[%clk 0:02:28.9]} 22. Rfd1 {[%clk
0:02:48.9]} 22... Ra8 {[%clk 0:02:23.9]} 23. c5 {[%clk 0:02:48.5]} 23... dxc5
{[%clk 0:02:16.5]} 24. Bxc5 {[%clk 0:02:48.1]} 24... Rfd8 {[%clk 0:02:06.9]} 25.
g3 {[%clk 0:02:42.9]} 25... h5 {[%clk 0:01:57.1]} 26. Kg2 {[%clk 0:02:37.9]}
26... e6 {[%clk 0:01:43.5]} 27. Qe3 {[%clk 0:02:32.5]} 27... Rxd3 {[%clk
0:01:35.3]} 28. Rxd3 {[%clk 0:02:32.4]} 28... a4 {[%clk 0:01:32]} 29. bxa4
{[%clk 0:02:25.6]} 29... Rxa4 {[%clk 0:01:29.3]} 30. a3 {[%clk 0:02:25.8]} 30...
Be7 {[%clk 0:01:26.9]} 31. Bb6 {[%clk 0:02:13.2]} 31... Qb7 {[%clk 0:01:17.4]}
32. Bc5 {[%clk 0:02:07.9]} 32... Rc4 {[%clk 0:01:10.8]} 33. Bd6 {[%clk
0:01:57.4]} 33... c5 {[%clk 0:01:02.3]} 34. Bxe7 {[%clk 0:01:54.8]} 34... Qxe7
{[%clk 0:01:02]} 35. e5 {[%clk 0:01:45.8]} 35... Rd4 {[%clk 0:00:51]} 36. Kh3
{[%clk 0:01:02.2]} 36... Kg7 {[%clk 0:00:44.9]} 37. Rc3 {[%clk 0:00:50.1]} 37...
Rd5 {[%clk 0:00:15.9]} 38. a4 {[%clk 0:00:48.1]} 38... Qc7 {[%clk 0:00:16.4]}
39. f4 {[%clk 0:00:46.9]} 39... Qa5 {[%clk 0:00:15.6]} 40. Rc4 {[%clk 0:00:46]}
40... Qa6 {[%clk 0:00:13.9]} 41. Qc3 {[%clk 0:00:42.1]} 41... Rd4 {[%clk
0:00:04.3]} 42. Rxd4 {[%clk 0:00:40.9]} 42... cxd4 {[%clk 0:00:05.2]} 43. Qxd4
{[%clk 0:00:40.4]} 43... Qf1+ {[%clk 0:00:05.7]} 44. Kh4 {[%clk 0:00:41]} 44...
Qf3 {[%clk 0:00:05.4]} 45. h3 {[%clk 0:00:40.8]} 45... Kh6 {[%clk 0:00:04.4]}
46. Qd8 {[%clk 0:00:39.7]} 46... Kg7 {[%clk 0:00:04.2]} 47. a5 {[%clk
0:00:37.5]} 47... Qe2 {[%clk 0:00:02.4]} 48. Qb6 {[%clk 0:00:32.8]} 48... Qe4
{[%clk 0:00:01.7]} 49. Qd8 {[%clk 0:00:30.1]} 49... Qe2 {[%clk 0:00:01.3]} 50.
Qf6+ {[%clk 0:00:30.7]} 50... Kg8 {[%clk 0:00:01.7]} 51. Kg5 {[%clk 0:00:25.8]}
51... h4 {[%clk 0:00:02.1]} 52. g4 {[%clk 0:00:24.9]} 1-0